bitfinex/quotes_SOLUSD_20241116
["timestamp","ask_amount","ask_price","bid_price","bid_amount"]
[1731772431772,22.84458327,215.14,215.08,20.0]
[1731772432471,22.84458327,215.14,215.09,4.6492]
[1731772433056,0.25098,215.13,215.09,4.6492]
[1731772433260,22.84458327,215.14,215.09,4.6492]
[1731772433461,22.84458327,215.14,215.09,16.2722]
[1731772433969,22.84458327,215.16,215.1,20.0]
[1731772434358,22.84458327,215.18,215.1,20.0]
[1731772434559,22.84458327,215.18,215.09,39.11678327]
[1731772434560,22.84458327,215.2,215.12,36.2699]
[1731772434755,22.84458327,215.2,215.13,22.84458327]
[1731772435067,23.37130207,215.22,215.14,20.0]
[1731772436655,23.37130207,215.22,215.15,16.2677]
[1731772436846,23.37130207,215.22,215.16,20.0]
[1731772437062,22.84458327,215.2,215.16,20.0]
[1731772437254,22.84458327,215.18,215.11,22.84458327]
[1731772437458,22.84458327,215.18,215.01,0.2]
[1731772437459,24.027864,215.17,215.1,11.6222]
[1731772438568,24.027864,215.17,215.11,20.0]
[1731772438752,24.027864,215.17,215.12,4.6485]
[1731772439765,22.84458327,215.16,215.12,4.6485]
[1731772439978,22.84458327,215.16,215.06,23.2487]
[1731772439979,24.027864,215.13,215.06,11.6245]
[1731772440266,0.25098,215.13,215.06,11.6245]
[1731772440462,0.12549,215.13,215.06,11.6245]
[1731772440646,22.84458327,215.12,215.06,11.6245]
[1731772440850,4.6475,215.17,215.06,11.6245]
[1731772440851,22.84458327,215.1,215.06,11.6245]
[1731772441050,0.12549,215.07,215.02,11.6267]
[1731772441256,0.12549,215.07,215.03,4.6503]
[1731772441847,0.12549,215.09,215.03,4.6503]
[1731772442069,0.12549,215.09,215.03,27.49488327]
[1731772442383,22.84458327,215.14,215.06,20.0]
[1731772443280,22.84458327,215.16,215.1,20.0]
[1731772443450,22.84458327,215.18,215.1,20.0]
[1731772444465,0.25098,215.17,215.11,16.2706]
[1731772444659,22.84458327,215.16,215.12,20.0]
[1731772445548,0.5267188,215.22,215.12,20.0]
[1731772445549,22.84458327,215.2,215.12,20.0]
[1731772445859,22.84458327,215.2,215.14,20.0]
[1731772446254,22.84458327,215.18,215.12,20.0]
[1731772446451,22.84458327,215.2,215.14,20.0]
[1731772447279,0.12549,215.19,215.14,20.0]
[1731772448562,0.12549,215.19,215.15,4.6479]
[1731772449477,0.12549,215.19,215.15,16.2677]
[1731772451254,24.027864,215.19,215.15,16.2677]
[1731772451465,22.84458327,215.18,215.15,16.2677]
[1731772451669,22.84458327,215.18,215.15,11.6198]
[1731772452063,22.84458327,215.16,215.11,16.2704]
[1731772453075,23.09556327,215.13,215.08,4.6494]
[1731772453464,23.09556327,215.13,215.07,11.624]
[1731772453672,24.027864,215.07,215.02,11.6263]
[1731772453972,22.84458327,215.08,215.02,11.6263]
[1731772454472,22.84458327,215.06,215.02,11.6263]
[1731772455055,22.84458327,215.08,215.02,11.6263]
[1731772456777,22.84458327,215.06,215.02,11.6263]
[1731772456976,0.12549,215.05,215.02,11.6263]
[1731772457164,22.84458327,215.08,215.03,20.0]
[1731772458083,22.84458327,215.1,215.03,20.0]
[1731772458264,22.84458327,215.12,215.05,20.0]
[1731772459288,22.84458327,215.12,215.06,16.2744]
[1731772459662,22.84458327,215.12,215.07,20.0]
[1731772460063,22.84458327,215.14,215.07,20.0]
[1731772461280,22.84458327,215.12,215.08,16.2729]
[1731772461592,22.84458327,215.1,215.08,16.2729]
[1731772462279,22.84458327,215.1,215.02,22.84458327]
[1731772462489,22.84458327,215.1,215.03,36.2767]
[1731772462687,24.027864,215.07,215.03,11.6262]
[1731772462865,22.84458327,215.06,215.03,11.6262]
[1731772463182,0.12549,215.07,215.03,16.2767]
[1731772463387,22.84458327,215.1,215.03,16.2767]
[1731772463589,0.12549,215.09,215.03,16.2767]
[1731772463963,0.12549,215.09,215.04,20.0]
[1731772464364,0.12549,215.09,215.05,4.65]
[1731772464965,22.84458327,215.1,215.05,4.65]
[1731772465166,22.84458327,215.1,215.05,16.2752]
[1731772465483,22.84458327,215.12,215.06,20.0]
[1731772466772,22.84458327,215.12,215.07,16.2737]
[1731772467265,0.12549,215.09,215.03,16.2766]
[1731772467463,22.84458327,215.08,215.04,20.0]
[1731772468308,0.12549,215.05,215.01,4.6507]
[1731772468589,0.12549,215.07,215.01,4.6507]
[1731772468792,22.97007327,215.1,215.01,11.6273]
[1731772469091,0.12549,215.09,215.01,11.6273]
[1731772469398,108.80867823,215.21,215.07,22.84458327]
[1731772469399,22.84458327,215.17,215.07,22.84458327]
[1731772469696,22.84458327,215.17,215.09,22.84458327]
[1731772470275,27.49218327,215.17,215.09,27.49358327]
[1731772470592,22.84458327,215.11,215.04,16.2758]
[1731772470893,22.84458327,215.09,215.05,20.0]
[1731772471596,0.25098,215.1,215.06,4.6498]
[1731772471902,22.84458327,215.13,215.07,20.0]
[1731772472203,0.12549,215.12,215.07,20.0]
[1731772472771,22.84458327,215.13,215.07,20.0]
[1731772472972,0.12549,215.14,215.07,42.84458327]
[1731772473580,0.12549,215.14,215.09,20.0]
[1731772474107,0.25098,215.16,215.09,20.0]
[1731772474678,24.027864,215.16,215.09,20.0]
[1731772474986,0.12549,215.14,215.09,20.0]
[1731772475492,0.12549,215.14,215.1,16.2715]
[1731772475795,0.25098,215.14,215.11,20.0]
[1731772475980,0.25098,215.14,215.1,11.6225]
[1731772476499,0.12549,215.12,215.1,11.6225]
[1731772477100,0.12549,215.12,215.1,16.2715]
[1731772477685,0.12549,215.12,215.07,20.0]
[1731772478177,0.12549,215.14,215.07,42.84458327]
[1731772478397,0.25098,215.16,215.07,42.84458327]
[1731772478900,22.84458327,215.15,215.07,42.84458327]
[1731772479073,22.84458327,215.15,215.09,20.0]
[1731772480282,22.84458327,215.15,215.1,16.2715]
[1731772480902,22.84458327,215.11,215.07,4.6495]
[1731772481107,22.84458327,215.09,215.06,20.0]
[1731772481281,0.12549,215.1,215.07,20.0]
[1731772481603,4.648,215.15,215.07,20.0]
[1731772481604,22.84458327,215.13,215.07,20.0]
[1731772482011,0.12549,215.12,215.07,20.0]
[1731772482512,22.84458327,215.18,215.1,22.84458327]
[1731772482697,22.84458327,215.2,215.13,22.84458327]
[1731772482878,22.84458327,215.2,215.11,42.84458327]
[1731772483786,22.84458327,215.2,215.12,16.2699]
[1731772484105,22.84458327,215.2,215.13,20.0]
[1731772484106,0.12549,215.19,215.13,20.0]
[1731772484925,0.12549,215.19,215.14,4.6481]
[1731772485086,24.027864,215.19,215.12,11.6214]
[1731772485290,24.027864,215.17,215.13,20.0]
[1731772485601,24.027864,215.17,215.12,16.2697]
[1731772485982,0.5267188,215.22,215.12,16.2697]
[1731772485983,22.84458327,215.2,215.13,20.0]
[1731772486199,0.12549,215.19,215.13,20.0]
[1731772487004,0.12549,215.19,215.14,16.2684]
[1731772487308,22.84458327,215.2,215.14,16.2684]
[1731772487309,22.84458327,215.2,215.15,20.0]
[1731772487616,0.12549,215.21,215.15,20.0]
[1731772487981,23.37130207,215.22,215.15,20.0]
[1731772488404,23.37130207,215.22,215.16,16.2669]
[1731772488595,0.5267188,215.22,215.17,20.0]
[1731772489617,0.5267188,215.22,215.18,16.2653]
[1731772491409,0.5267188,215.22,215.18,11.6181]
[1731772491705,0.5267188,215.22,215.19,20.0]
[1731772492790,14.77307332,215.22,215.19,20.0]
[1731772493406,0.5267188,215.22,215.19,20.0]
[1731772493597,0.5267188,215.22,215.2,4.6468]
[1731772493899,0.5267188,215.22,215.2,16.2639]
[1731772495910,0.5267188,215.22,215.21,34.24635452]
[1731772499207,0.5267188,215.22,215.21,20.0]
[1731772499399,0.5267188,215.22,215.2,16.2639]
[1731772499602,0.5267188,215.22,215.21,20.0]
[1731772501690,0.5267188,215.22,215.2,16.2639]
[1731772501896,0.5267188,215.22,215.21,20.0]
[1731772502419,0.25098,215.21,215.1,23.2445]
[1731772502588,23.902374,215.16,215.1,23.2445]
[1731772503099,14.24635452,215.19,215.12,4.6484]
[1731772504103,14.24635452,215.19,215.12,24.6484]
[1731772504617,14.24635452,215.19,215.12,36.2698]
[1731772505017,23.902374,215.18,215.12,36.2698]
[1731772506100,23.902374,215.16,215.12,36.2698]
[1731772506296,23.902374,215.16,215.12,31.6214]
[1731772506297,14.24635452,215.15,215.12,31.6214]
[1731772506898,14.24635452,215.15,215.12,36.2699]
[1731772507197,14.24635452,215.15,215.12,31.6214]
[1731772507405,0.12549,215.14,215.12,11.6214]
[1731772507599,23.902374,215.14,215.12,11.6214]
[1731772509016,23.902374,215.12,215.08,16.2729]
[1731772509216,24.027864,215.08,214.99,30.52605452]
[1731772509399,4.6482,215.14,215.03,14.24635452]
[1731772509594,24.027864,215.1,215.03,14.24635452]
[1731772509809,38.14872852,215.08,215.0,14.24635452]
[1731772510203,38.14872852,215.08,214.99,16.2797]
[1731772510204,14.24635452,215.06,214.99,16.2797]
[1731772510406,14.24635452,215.06,214.99,30.52605452]
[1731772510601,0.12549,215.07,214.99,30.52605452]
[1731772511001,14.24635452,215.06,214.99,30.52605452]
[1731772512206,0.12549,215.07,214.99,30.52605452]
[1731772513926,0.25098,215.04,214.99,16.2797]
[1731772514214,23.776884,215.03,214.99,16.2797]
[1731772514419,0.12549,215.02,214.99,16.2797]
[1731772515016,0.12549,215.02,214.99,11.6284]
[1731772515800,23.776884,215.01,214.97,4.6518]
[1731772516007,0.12549,215.0,214.97,4.6518]
[1731772516924,0.12549,215.0,214.95,11.6305]
[1731772518225,14.37184452,215.0,214.95,11.6305]
[1731772518422,14.24635452,214.98,214.95,11.6305]
[1731772519427,14.24635452,214.97,214.95,11.6305]
[1731772519639,23.902374,214.98,214.95,11.6305]
[1731772519933,23.902374,215.02,214.96,14.24635452]
[1731772520426,23.902374,215.02,214.97,16.2813]
[1731772521616,14.24635452,214.99,214.93,11.6316]
[1731772521829,38.14872852,214.98,214.93,16.2841]
[1731772522130,14.24635452,214.97,214.93,16.2841]
[1731772522313,23.902374,214.96,214.93,11.6316]
[1731772522632,38.14872852,214.96,214.93,11.6316]
[1731772523316,14.37184452,214.95,214.9,4.6533]
[1731772523629,23.902374,214.94,214.9,4.6533]
[1731772524228,38.14872852,214.94,214.9,4.6533]
[1731772524407,38.14872852,214.94,214.88,11.6339]
[1731772524608,38.14872852,214.94,214.88,16.2876]
[1731772524909,38.14872852,214.9,214.88,11.6339]
[1731772525219,23.902374,214.88,214.84,4.6545]
[1731772525724,0.12549,214.88,214.84,4.6545]
[1731772526025,38.02323852,214.9,214.84,4.6545]
[1731772526026,23.776884,214.9,214.84,4.6545]
[1731772526623,23.776884,214.9,214.84,16.291]
[1731772528427,0.12549,214.89,214.84,16.291]
[1731772530031,23.776884,214.9,214.84,16.291]
[1731772530226,14.24635452,214.94,214.88,14.24635452]
[1731772530516,14.24635452,214.95,214.88,14.24635452]
[1731772530706,14.24635452,214.95,214.84,39.5641]
[1731772530707,14.24635452,214.95,214.87,14.24635452]
[1731772531125,14.24635452,214.94,214.86,14.24635452]
[1731772531507,14.24635452,214.93,214.87,16.2888]
[1731772531909,23.902374,214.92,214.87,16.2888]
[1731772532109,0.12549,214.92,214.87,30.53515452]
[1731772532332,14.37184452,214.93,214.87,16.2888]
[1731772532519,23.776884,214.92,214.87,16.2888]
[1731772535417,38.02323852,214.92,214.87,16.2888]
[1731772535620,0.12549,214.91,214.87,16.2888]
[1731772536211,14.37184452,214.91,214.87,16.2888]
[1731772536412,23.776884,214.9,214.87,16.2888]
[1731772536913,23.902374,214.91,214.87,16.2888]
[1731772537526,38.14872852,214.91,214.87,16.2888]
[1731772537919,38.14872852,214.89,214.84,4.6544]
[1731772538119,38.14872852,214.89,214.83,11.6369]
[1731772538120,23.902374,214.86,214.83,11.6369]
[1731772538408,23.902374,214.86,214.79,14.24635452]
[1731772538409,23.776884,214.83,214.79,11.6391]
[1731772538625,23.776884,214.83,214.79,16.2948]
[1731772539012,23.776884,214.85,214.79,16.2948]
[1731772539233,14.24635452,214.84,214.79,16.2948]
[1731772539419,23.776884,214.83,214.79,16.2948]
[1731772539824,0.12549,214.82,214.79,16.2948]
[1731772540220,23.776884,214.83,214.79,16.2948]
[1731772540424,23.776884,214.84,214.79,30.54115452]
[1731772540826,23.776884,214.84,214.79,16.2948]
[1731772541022,23.776884,214.82,214.79,16.2948]
[1731772541222,0.22549,214.9,214.77,4.6559]
[1731772541223,23.776884,214.8,214.77,4.6559]
[1731772541738,14.24635452,214.83,214.77,16.2962]
[1731772542032,23.776884,214.82,214.77,16.2962]
[1731772543442,23.776884,214.8,214.77,16.2962]
[1731772543916,23.776884,214.8,214.75,4.6563]
[1731772544115,14.24635452,214.79,214.75,4.6563]
[1731772544326,23.776884,214.78,214.75,4.6563]
[1731772545339,23.776884,214.78,214.73,11.6423]
[1731772549935,23.776884,214.78,214.73,25.88865452]
[1731772550135,23.776884,214.81,214.75,14.24635452]
[1731772550446,23.776884,214.81,214.76,16.2972]
[1731772550940,23.776884,214.83,214.76,16.2972]
[1731772551332,14.24635452,214.84,214.76,16.2972]
[1731772551962,14.24635452,214.82,214.76,16.2972]
[1731772552490,14.24635452,214.82,214.76,11.6409]
[1731772552626,23.776884,214.81,214.76,11.6409]
[1731772552822,23.776884,214.79,214.76,11.6409]
[1731772553030,14.37184452,214.78,214.72,16.2998]
[1731772553237,23.776884,214.77,214.72,16.2998]
[1731772556851,23.776884,214.77,214.72,11.6428]
[1731772558751,23.776884,214.77,214.68,29.74939034]
[1731772558752,23.776884,214.72,214.68,29.74939034]
[1731772558955,14.24635452,214.69,214.68,29.74939034]
[1731772559325,38.02323852,214.69,214.68,29.74939034]
[1731772560057,23.776884,214.68,214.65,4.6587]
[1731772560348,23.776884,214.66,214.65,4.6587]
[1731772560552,23.776884,214.66,214.59,14.24635452]
[1731772560758,23.776884,214.64,214.59,11.6497]
[1731772561440,23.776884,214.64,214.59,16.3097]
[1731772561648,14.24635452,214.67,214.6,14.24635452]
[1731772561949,23.776884,214.67,214.61,14.24635452]
[1731772562249,23.776884,214.67,214.62,16.3077]
[1731772563037,23.776884,214.67,214.62,14.24635452]
[1731772563258,23.776884,214.68,214.62,14.24635452]
[1731772563955,23.902374,214.7,214.64,14.24635452]
[1731772564248,14.24635452,214.72,214.65,14.24635452]
[1731772564449,14.24635452,214.73,214.66,14.24635452]
[1731772564655,14.24635452,214.74,214.67,14.24635452]
[1731772564845,14.24635452,214.73,214.66,14.24635452]
[1731772565343,14.24635452,214.74,214.67,30.55035452]
[1731772565956,23.776884,214.73,214.67,30.55035452]
[1731772566531,14.24635452,214.72,214.67,16.304]
[1731772566749,23.776884,214.73,214.67,11.6457]
[1731772566750,14.24635452,214.7,214.67,11.6457]
[1731772566937,23.776884,214.67,214.64,4.6588]
[1731772567137,38.02323852,214.67,214.64,4.6588]
[1731772567540,14.24635452,214.69,214.64,16.3062]
[1731772567742,14.24635452,214.71,214.64,30.55255452]
[1731772568046,23.776884,214.71,214.65,14.24635452]
[1731772568240,38.02323852,214.71,214.64,30.55255452]
[1731772568755,23.776884,214.68,214.64,30.55255452]
[1731772569058,14.24635452,214.73,214.67,14.24635452]
[1731772569238,14.24635452,214.72,214.66,14.24635452]
[1731772569757,4.6559,214.78,214.67,14.24635452]
[1731772569758,14.24635452,214.74,214.67,14.24635452]
[1731772570056,14.24635452,214.74,214.64,39.601]
[1731772570057,14.24635452,214.74,214.68,14.24635452]
[1731772570256,14.24635452,214.74,214.67,14.24635452]
[1731772570464,14.24635452,214.79,214.72,14.24635452]
[1731772570758,14.24635452,214.79,214.65,0.09367462]
[1731772570759,14.24635452,214.8,214.73,14.24635452]
[1731772570952,14.24635452,214.78,214.71,14.24635452]
[1731772571256,14.24635452,214.79,214.72,14.24635452]
[1731772571451,0.1,214.95,214.78,14.24635452]
[1731772571654,14.24635452,214.92,214.84,14.24635452]
[1731772571840,14.24635452,214.96,214.88,14.24635452]
[1731772572159,14.24635452,214.96,214.89,4.6535]
[1731772572340,14.24635452,214.96,214.89,16.2873]
[1731772572543,14.24635452,214.95,214.89,16.2873]
[1731772572935,14.24635452,214.95,214.89,11.6338]
[1731772573150,4.7516,214.98,214.89,11.6338]
[1731772573151,14.24635452,214.93,214.89,11.6338]
[1731772573541,14.24635452,214.91,214.85,4.6543]
[1731772573857,0.1,214.97,214.86,14.24635452]
[1731772574052,14.24635452,214.94,214.87,4.6539]
[1731772574548,14.24635452,214.94,214.87,16.2888]
[1731772575053,14.24635452,214.95,214.87,30.53515452]
[1731772575752,14.24635452,215.0,214.92,14.24635452]
[1731772576142,14.24635452,215.0,214.93,16.2842]
[1731772576656,14.24635452,214.94,214.88,11.6341]
[1731772576868,22.86055061,214.91,214.88,11.6341]
[1731772577057,22.86055061,214.93,214.88,11.6341]
[1731772577662,23.902374,214.92,214.88,11.6341]
[1731772578359,22.86055061,214.91,214.88,11.6341]
[1731772578556,23.776884,214.9,214.88,11.6341]
[1731772579060,23.902374,214.92,214.88,11.6341]
[1731772581643,0.12549,214.92,214.88,11.6341]
[1731772581838,0.25098,214.93,214.88,11.6341]
[1731772583068,23.11153061,214.93,214.88,11.6341]
[1731772583564,0.12549,214.91,214.88,11.6341]
[1731772585358,23.776884,214.94,214.88,34.49465061]
[1731772585547,22.86055061,214.95,214.88,34.49465061]
[1731772585736,22.86055061,214.97,214.88,34.49465061]
[1731772586755,24.027864,214.96,214.88,39.14835061]
[1731772587160,0.1,215.1,214.95,22.86055061]
[1731772587361,22.86055061,215.09,215.01,22.86055061]
[1731772588241,22.86055061,215.07,214.99,22.86055061]
[1731772588436,22.86055061,215.07,215.0,16.279]
[1731772589850,23.902374,215.06,215.0,16.279]
[1731772590457,23.902374,215.06,215.01,22.86055061]
[1731772590861,23.11153061,215.07,214.99,22.86055061]
[1731772591039,23.11153061,215.07,214.95,39.14335061]
[1731772591040,23.902374,215.02,214.95,39.14335061]
[1731772591657,0.12549,215.01,214.95,39.14335061]
[1731772591843,23.902374,215.0,214.95,16.2828]
[1731772594967,22.98604061,215.01,214.95,16.2828]
[1731772594968,0.25098,215.01,214.95,22.86055061]
[1731772595163,108.90867823,215.09,214.97,22.86055061]
[1731772595164,22.86055061,215.05,214.97,22.86055061]
[1731772596564,24.027864,215.04,214.98,16.2804]
[1731772596868,24.027864,215.04,214.99,22.86055061]
[1731772597162,24.027864,215.02,214.98,11.6289]
[1731772597965,46.88841461,215.02,214.98,16.2804]
[1731772598871,24.027864,215.02,214.98,11.6289]
[1731772599379,24.027864,215.02,214.96,4.652]
[1731772599548,23.902374,215.0,214.96,4.652]
[1731772600252,23.902374,215.0,214.75,14.36116831]
[1731772600253,0.22549,214.88,214.75,14.36116831]
[1731772600568,0.22549,214.88,214.73,4.6568]
[1731772600569,23.776884,214.78,214.73,4.6568]
[1731772600751,23.776884,214.76,214.73,4.6568]
[1731772601075,23.776884,214.76,214.73,27.54800703]
[1731772601289,0.12549,214.82,214.75,22.89120703]
[1731772601570,46.79358103,214.8,214.73,4.6568]
[1731772601948,23.776884,214.78,214.73,4.6568]
[1731772602867,23.776884,214.78,214.73,27.54800703]
[1731772603173,0.12549,214.78,214.73,27.54800703]
[1731772603749,0.12549,214.78,214.73,39.19050703]
[1731772603948,22.89120703,214.82,214.75,22.89120703]
[1731772604154,0.12549,214.81,214.75,22.89120703]
[1731772604454,23.14218703,214.81,214.73,39.19050703]
[1731772604766,46.79358103,214.79,214.73,16.2993]
[1731772604996,22.89120703,214.8,214.73,16.2993]
[1731772605383,0.25098,214.81,214.75,22.89120703]
[1731772605384,0.12549,214.81,214.75,22.89120703]
[1731772605676,0.12549,214.81,214.76,4.6563]
[1731772606551,0.12549,214.81,214.76,16.2972]
[1731772607075,0.12549,214.81,214.76,39.18840703]
[1731772608459,22.89120703,214.85,214.78,22.89120703]
[1731772608665,22.89120703,214.84,214.77,22.89120703]
[1731772609375,22.89120703,214.85,214.78,39.18690703]
[1731772610065,23.902374,214.84,214.78,39.18690703]
[1731772610258,46.79358103,214.84,214.78,16.2957]
[1731772612053,22.89120703,214.82,214.78,11.6398]
[1731772612253,23.776884,214.81,214.78,11.6398]
[1731772612459,0.12549,214.78,214.72,11.6427]
[1731772612673,22.89120703,214.76,214.72,11.6427]
[1731772612887,23.776884,214.75,214.72,11.6427]
[1731772613378,23.776884,214.76,214.72,11.6427]
[1731772613556,46.66809103,214.76,214.72,11.6427]
[1731772613756,23.776884,214.76,214.72,11.6427]
[1731772614565,23.902374,214.78,214.73,22.89120703]
[1731772614765,0.12549,214.78,214.73,22.89120703]
[1731772614956,0.12549,214.78,214.72,22.89120703]
[1731772615762,0.12549,214.78,214.73,4.657]
[1731772618963,0.12549,214.78,214.73,27.54820703]
[1731772620555,23.776884,214.77,214.71,22.89120703]
[1731772620772,46.66809103,214.77,214.7,22.89120703]
[1731772621086,46.66809103,214.77,214.66,16.3048]
[1731772621087,23.776884,214.77,214.71,22.89120703]
[1731772621276,23.902374,214.78,214.72,22.89120703]
[1731772621676,23.902374,214.78,214.73,22.89120703]
[1731772621855,23.902374,214.78,214.72,22.89120703]
[1731772621856,0.12549,214.78,214.72,22.89120703]
[1731772622463,0.12549,214.78,214.73,4.657]
[1731772622857,0.12549,214.79,214.73,16.2995]
[1731772623080,23.776884,214.76,214.73,16.2995]
[1731772623380,0.12549,214.77,214.73,16.2995]
[1731772623885,0.12549,214.77,214.73,30.60135239]
[1731772624192,0.12549,214.78,214.73,30.60135239]
[1731772625861,0.12549,214.78,214.74,14.30185239]
[1731772626186,0.12549,214.79,214.74,14.30185239]
[1731772626489,0.12549,214.79,214.73,14.30185239]
[1731772627159,14.30185239,214.83,214.76,14.30185239]
[1731772628377,7.95687135,214.9,214.66,23.2926]
[1731772628378,4.6533,214.9,214.8,14.30185239]
[1731772628585,14.30185239,214.87,214.8,14.30185239]
[1731772628792,14.30185239,214.85,214.78,14.30185239]
[1731772629464,14.30185239,214.84,214.79,4.6557]
[1731772629665,23.902374,214.83,214.79,4.6557]
[1731772630284,14.30185239,214.84,214.79,4.6557]
[1731772630285,0.25098,214.84,214.79,4.6557]
[1731772630583,24.027864,214.84,214.79,16.2949]
[1731772630977,0.25098,214.85,214.79,16.2949]
[1731772632885,23.776884,214.84,214.79,16.2949]
[1731772633090,0.25098,214.83,214.79,16.2949]
[1731772635064,0.25098,214.83,214.79,14.30185239]
[1731772635264,0.25098,214.84,214.79,14.30185239]
[1731772635567,0.25098,214.84,214.78,14.30185239]
[1731772635768,24.027864,214.84,214.78,14.30185239]
[1731772636584,24.027864,214.84,214.77,14.30185239]
[1731772636767,24.027864,214.84,214.78,14.30185239]
[1731772636970,24.027864,214.84,214.79,4.6557]
[1731772637170,24.027864,214.84,214.79,18.95755239]
[1731772637573,24.027864,214.85,214.79,18.95755239]
[1731772638186,0.12549,214.84,214.79,18.95755239]
[1731772639689,0.12549,214.84,214.78,14.30185239]
[1731772640400,14.42734239,214.84,214.77,14.30185239]
[1731772640574,23.776884,214.83,214.77,14.30185239]
[1731772641289,23.776884,214.81,214.75,14.30185239]
[1731772641879,0.25098,214.8,214.76,16.2972]
[1731772642092,14.30185239,214.78,214.76,11.6409]
[1731772642471,24.027864,214.78,214.76,11.6409]
[1731772643278,24.027864,214.78,214.73,37.58685239]
[1731772643585,0.25098,214.78,214.73,37.58685239]
[1731772644387,14.55283239,214.79,214.73,23.285]
[1731772644587,23.776884,214.78,214.73,37.58685239]
[1731772644988,0.25098,214.79,214.73,37.58685239]
[1731772645179,0.25098,214.79,214.74,14.30185239]
[1731772645879,18.95705239,214.81,214.74,18.95855239]
[1731772645880,14.30185239,214.81,214.74,18.95855239]
[1731772646682,14.30185239,214.81,214.74,30.60045239]
[1731772646986,24.027864,214.8,214.74,30.60045239]
[1731772647579,24.027864,214.8,214.74,16.2986]
[1731772650188,24.027864,214.8,214.74,14.30185239]
[1731772651474,4.6548,214.83,214.73,23.285]
[1731772651475,14.30185239,214.83,214.76,14.30185239]
[1731772651682,0.25098,214.82,214.78,14.30185239]
[1731772652078,24.027864,214.84,214.78,14.30185239]
[1731772652274,38.32971639,214.84,214.78,4.6557]
[1731772652511,24.027864,214.82,214.78,4.6557]
[1731772652795,14.30185239,214.81,214.77,11.64]
[1731772653004,24.027864,214.8,214.77,11.64]
[1731772653797,24.027864,214.8,214.74,4.6567]
[1731772653995,38.32971639,214.8,214.74,4.6567]
[1731772654580,24.027864,214.8,214.74,16.2986]
[1731772654810,24.027864,214.8,214.74,25.4519436]
[1731772657683,24.027864,214.8,214.75,9.1533436]
[1731772657890,0.25098,214.8,214.75,9.1533436]
[1731772658599,23.776884,214.81,214.78,9.1533436]
[1731772659895,23.776884,214.81,214.79,4.6557]
[1731772660707,4.6539,214.88,214.79,13.8090436]
[1731772660883,9.1533436,214.88,214.81,9.1533436]
[1731772661287,9.1533436,214.87,214.8,9.1533436]
[1731772661896,9.1533436,214.88,214.81,9.1533436]
[1731772662102,33.1812076,214.87,214.8,9.1533436]
[1731772662895,37.8353076,214.87,214.8,13.8086436]
[1731772663396,9.4043236,214.85,214.79,11.6392]
[1731772663601,23.776884,214.82,214.79,16.2949]
[1731772664696,23.776884,214.82,214.79,11.6392]
[1731772665496,23.776884,214.83,214.79,11.6392]
[1731772667415,9.1533436,214.82,214.76,19.01736831]
[1731772667714,9.1533436,214.82,214.75,40.70540996]
[1731772667715,23.776884,214.79,214.75,11.6413]
[1731772667893,23.776884,214.81,214.77,9.1533436]
[1731772668213,32.9302276,214.85,214.78,9.1533436]
[1731772668626,9.1533436,214.84,214.77,9.1533436]
[1731772668830,23.776884,214.83,214.75,30.65896831]
[1731772669004,23.776884,214.83,214.77,9.1533436]
[1731772669209,23.776884,214.83,214.78,4.6559]
[1731772670617,23.776884,214.83,214.78,13.8092436]
[1731772671030,28.431284,214.85,214.78,13.8092436]
[1731772672414,28.431284,214.85,214.79,9.1533436]
[1731772673628,23.776884,214.86,214.8,9.1533436]
[1731772674820,23.776884,214.86,214.8,13.8086436]
[1731772675132,0.25098,214.87,214.82,9.1533436]
[1731772677399,0.1,214.97,214.86,9.1533436]
[1731772677604,9.1533436,214.97,214.9,9.1533436]
[1731772678104,9.2533436,214.97,214.9,9.1533436]
[1731772678318,0.1,214.97,214.9,9.1533436]
[1731772678522,9.2533436,214.97,214.89,9.1533436]
[1731772678835,13.8053436,214.96,214.89,9.1533436]
[1731772679119,13.8053436,214.96,214.89,13.8068436]
[1731772679424,24.027864,214.95,214.89,13.8068436]
[1731772680130,28.680164,214.95,214.89,13.8068436]
[1731772681037,37.8335076,214.95,214.88,9.1533436]